fUST/lending_fUST_20240714
["ID","MTS","AMOUNT","RATE_DAILY","PERIOD"]
[331962157,1720901444770,-563.44,0.00025753,2]
[331962158,1720901444779,-500.0,0.00025753,2]
[331962159,1720901444789,-320.89,0.00025753,2]
[331962160,1720901444799,-500.0,0.00025753,2]
[331962161,1720901444811,-500.0,0.00025753,2]
[331962162,1720901444822,-12522.46,0.00025753,2]
[331962163,1720901444832,-500.0,0.00025753,2]
[331962164,1720901444842,-867.78,0.00025753,2]
[331962165,1720901444851,-2378.11,0.00025753,2]
[331962166,1720901444861,-301.53276867,0.00025753,2]
[331962167,1720901444870,-500.0,0.00025753,2]
[331962168,1720901444880,-500.0,0.00025753,2]
[331962169,1720901444889,-500.0,0.00025753,2]
[331962170,1720901444900,-812.75,0.00025753,2]
[331962171,1720901444910,-500.0,0.00025753,2]
[331962172,1720901444919,-534.06,0.00025753,2]
[331962173,1720901444929,-500.0,0.00025753,2]
[331962174,1720901444940,-500.0,0.00025753,2]
[331962175,1720901444950,-540.2,0.00025753,2]
[331962176,1720901444961,-168.21,0.00025753,2]
[331962177,1720901444972,-620.00000802,0.00025781,2]
[331962178,1720901444981,-5190.6059349,0.00025852,2]
[331962179,1720901444991,-524.878979,0.00025858,2]
[331962180,1720901445000,-356.67477991,0.00025977,2]
[331962181,1720901445009,-16081.071008,0.00026017,3]
[331962182,1720901445019,-2393.03,0.00026027,2]
[331962183,1720901445031,-500.0,0.00026027,2]
[331962184,1720901445040,-500.0,0.00026027,2]
[331962185,1720901445050,-500.0,0.00026027,2]
[331962186,1720901445061,-500.0,0.00026027,2]
[331962187,1720901445071,-500.0,0.00026027,2]
[331962188,1720901445082,-500.0,0.00026027,2]
[331962189,1720901445092,-914.37,0.00026027,2]
[331962190,1720901445177,-346.45,0.00026027,2]
[331962191,1720901445188,-506.74,0.00026027,2]
[331962192,1720901445201,-500.0,0.00026027,2]
[331962193,1720901445210,-500.0,0.00026027,2]
[331962194,1720901445220,-563.44,0.00026027,2]
[331962195,1720901445229,-500.0,0.00026027,2]
[331962196,1720901445241,-308.83,0.00026027,2]
[331962197,1720901445251,-500.0,0.00026027,2]
[331962198,1720901445261,-12522.46,0.00026027,2]
[331962199,1720901445271,-500.0,0.00026027,2]
[331962200,1720901445283,-867.78,0.00026027,2]
[331962201,1720901445293,-2378.11,0.00026027,2]
[331962202,1720901445303,-200.72303915,0.00026027,2]
[331962203,1720901445314,-500.0,0.00026027,2]
[331962204,1720901445324,-497.66058706,0.00026027,2]
[331962206,1720901445334,-812.75,0.00026027,2]
[331962208,1720901445344,-500.0,0.00026027,2]
[331962210,1720901445354,-500.0,0.00026027,2]
[331962212,1720901445364,-500.0,0.00026027,2]
[331962214,1720901445373,-540.2,0.00026027,2]
[331962215,1720901445383,-356.67477991,0.00026073,2]
[331962216,1720901445395,-5190.6059349,0.00026097,2]
[331962217,1720901445406,-158.35636453,0.00026255,2]
[331962218,1720901445416,-2393.03,0.00026301,2]
[331962219,1720901445427,-500.0,0.00026301,2]
[331962220,1720901445436,-500.0,0.00026301,2]
[331962221,1720901445446,-227.19,0.00026301,2]
[331962222,1720901445455,-500.0,0.00026301,2]
[331962223,1720901445467,-500.0,0.00026301,2]
[331962224,1720901445476,-500.0,0.00026301,2]
[331962225,1720901445488,-914.37,0.00026301,2]
[331962226,1720901445498,-500.0,0.00026301,2]
[331962227,1720901445507,-500.0,0.00026301,2]
[331962228,1720901445517,-563.44,0.00026301,2]
[331962229,1720901445526,-0.14234078,0.00026301,2]
[331962230,1720901445654,-499.85765922,0.00026301,2]
[331962231,1720901445665,-440.07790656,0.00026301,2]
[331962234,1720901445919,-312.46511458,0.00024657,2]
[331962237,1720901446243,-276.75070729,0.00024242,2]
[331962238,1720901446255,-187.53488542,0.00024657,2]
[331962239,1720901446264,-500.0,0.00024657,2]
[331962240,1720901446274,-500.0,0.00024657,2]
[331962241,1720901446284,-500.0,0.00024657,2]
[331962242,1720901446294,-254.81516571,0.00024931,2]
[331962243,1720901446307,-245.18483429,0.00024931,2]
[331962244,1720901446317,-59.92209344,0.00026301,2]
[331962245,1720901446327,-52.64820487,0.00026301,2]
[331962246,1720901446339,-304.34410798,0.00026301,2]
[331962247,1720901446351,-10619.6797072,0.00026301,2]
[331962253,1720902302420,794.5289758,0.00014999,2]
[331962254,1720902334716,374.68623665,0.00014999,2]
[331962257,1720902362762,1920.59293955,0.00014999,2]
[331962263,1720902405688,154.68290005,0.00014999,2]
[331962265,1720902440154,-235.88764886,0.00018899,2]
[331962266,1720902440176,-35.98282332,0.00019039,2]
[331962269,1720902549143,-161.460893,0.00019039,2]
[331962270,1720902549164,-185.89247832,0.000191,2]
[331962271,1720902549185,-250.0,0.00019466,2]
[331962272,1720902549205,-861.89554258,0.0002,2]
[331962273,1720902549228,-4878.69176966,0.0002,2]
[331962274,1720902564109,-441.465885,0.00020569,2]
[331962275,1720902564134,-300.0,0.00020881,2]
[331962276,1720902564158,-24900.0,0.00020882,2]
[331962277,1720902564180,-232.25347967,0.00021,2]
[331962278,1720902564204,-170.364648,0.00021072,2]
[331962279,1720902564227,-191.27347695,0.00021095,2]
[331962280,1720902564250,-599.985739,0.00021096,2]
[331962281,1720902564270,-502.61660655,0.000212,2]
[331962282,1720902564294,-3000.0,0.00021826,2]
[331962283,1720902564317,-158.35036999,0.00021917,2]
[331962284,1720902564341,-166.666666,0.00021918,2]
[331962285,1720902564363,-1420.09140846,0.0002207,2]
[331962286,1720902564383,-161.4903,0.00022104,2]
[331962287,1720902564404,-250.0,0.00022123,2]
[331962288,1720902564424,-170.364648,0.0002217,2]
[331962289,1720902564444,-500.0,0.00022249,2]
[331962290,1720902564465,-500.0,0.00022249,2]
[331962291,1720902564487,-500.0,0.00022249,2]
[331962292,1720902564508,-500.0,0.00022249,2]
[331962293,1720902564532,-500.0,0.00022249,2]
[331962294,1720902564552,-500.0,0.00022249,2]
[331962295,1720902564573,-220.9425978,0.00022249,2]
[331962296,1720902564596,-420.46775328,0.00022249,2]
[331962297,1720902564616,-520.52236609,0.00022249,2]
[331962298,1720902564636,-500.0,0.00022249,2]
[331962299,1720902564658,-500.0,0.00022249,2]
[331962300,1720902564678,-500.0,0.00022249,2]
[331962301,1720902564699,-500.0,0.00022249,2]
[331962302,1720902564720,-500.0,0.00022249,2]
[331962303,1720902564743,-500.0,0.00022249,2]
[331962304,1720902564763,-500.0,0.00022249,2]
[331962305,1720902564786,-567.20662272,0.00022249,2]
[331962306,1720902564806,-500.0,0.00022249,2]
[331962307,1720902564827,-500.0,0.00022249,2]
[331962308,1720902564847,-500.0,0.00022249,2]
[331962309,1720902564867,-500.0,0.00022249,2]
[331962310,1720902564889,-8894.4522869,0.0002225,2]
[331962311,1720902564909,-435.0,0.00022943,2]
[331962312,1720902568679,162.823909,0.00022871,2]
[331962313,1720902578514,2104.00784244,0.0002015,2]
[331962320,1720902605888,2223.17048458,0.00022942,2]
[331962422,1720902632237,-197.44371632,0.00023077,2]
[331962424,1720902632246,-293.68788523,0.00023077,2]
[331962425,1720902632256,-191.27347695,0.00023077,2]
[331962428,1720902632266,-2059.53976644,0.00023325,2]
[331962432,1720902632279,-940.46023356,0.00023325,2]
[331962435,1720902632291,-154.55950541,0.00023455,2]
[331962438,1720902632300,-356.95152025,0.00023844,2]
[331962440,1720902632310,-704.48483568,0.00023868,2]
[331962443,1720902632320,-356.95152025,0.00024162,2]
[331962446,1720902632329,-435.0,0.00024424,2]
[331962449,1720902632339,-435.0,0.00024424,2]
[331962452,1720902632348,-166.666666,0.00024482,2]
[331962454,1720902632357,-300.0,0.00024556,2]
[331962457,1720902632367,-840.44984539,0.00024557,2]
[331962617,1720902638067,-4678.8335835,0.00024557,2]
[331962618,1720902638077,-356.95152025,0.00024571,2]
[331962619,1720902638086,-5137.3774296,0.00024572,2]
[331962620,1720902638095,-620.00287463,0.00024578,2]
[331962622,1720902638104,-451.91184697,0.00024646,2]
[331962623,1720902638113,-446.72470734,0.00024646,2]
[331962624,1720902638124,-25410.0297685,0.00024647,3]
[331962625,1720902638133,-500.0,0.00024657,2]
[331962627,1720902638144,-500.0,0.00024657,2]
[331962629,1720902638154,-500.0,0.00024657,2]
[331962631,1720902638163,-500.0,0.00024657,2]
[331962633,1720902638173,-502.05468494,0.00024657,2]
[331962635,1720902638182,-500.0,0.00024657,2]
[331962636,1720902638191,-500.0,0.00024657,2]
[331962637,1720902638201,-500.0,0.00024657,2]
[331962638,1720902638210,-500.0,0.00024657,2]
[331962639,1720902638219,-500.0,0.00024657,2]
[331962640,1720902638228,-1975.66,0.00024657,2]
[331962641,1720902638237,-500.0,0.00024657,2]
[331962642,1720902638246,-500.0,0.00024657,2]
[331962643,1720902638255,-500.0,0.00024657,2]
[331962644,1720902638264,-500.0,0.00024657,2]
[331962645,1720902638274,-500.0,0.00024657,2]
[331962646,1720902638284,-521.65316974,0.00024657,2]
[331962647,1720902638293,-500.0,0.00024657,2]
[331962648,1720902638303,-500.0,0.00024657,2]
[331962649,1720902638313,-502.50360043,0.00024657,2]
[331962650,1720902638323,-500.0,0.00024657,2]
[331962651,1720902638333,-500.0,0.00024657,2]
[331962652,1720902638343,-500.0,0.00024657,2]
[331962653,1720902638352,-500.0,0.00024657,2]
[331962654,1720902638363,-500.0,0.00024657,2]
[331962655,1720902638372,-500.0,0.00024657,2]
[331962656,1720902638381,-500.0,0.00024657,2]
[331962657,1720902638391,-500.0,0.00024657,2]
[331962658,1720902638400,-500.0,0.00024657,2]
[331962659,1720902638410,-1000.0,0.00024657,5]
[331962660,1720902638419,-500.0,0.00024657,2]
[331962661,1720902638429,-500.0,0.00024657,2]
[331962662,1720902638438,-500.0,0.00024657,2]
[331962663,1720902638448,-500.0,0.00024657,2]
[331962664,1720902638457,-500.0,0.00024657,2]
[331962665,1720902638466,-500.0,0.00024657,2]
[331962666,1720902638475,-500.0,0.00024657,2]
[331962667,1720902638485,-500.0,0.00024657,2]
[331962668,1720902638494,-500.0,0.00024657,2]
[331962669,1720902638505,-500.0,0.00024657,2]
[331962670,1720902638516,-167.84,0.00024657,2]
[331962671,1720902638525,-500.0,0.00024657,2]
[331962672,1720902638537,-500.0,0.00024657,2]
[331962673,1720902638547,-395.53496956,0.00024657,2]
[331962674,1720902638558,-632.9,0.00024657,2]
[331962675,1720902638567,-548.33484215,0.00024657,2]
[331962676,1720902638578,-876.27,0.00024657,2]
[331962677,1720902638588,-521.63656562,0.00024657,2]
[331962678,1720902638599,-500.0,0.00024657,2]
[331962679,1720902638609,-500.0,0.00024657,2]
[331962680,1720902638620,-450.76278161,0.00024657,2]
[331962681,1720902638629,-500.0,0.00024657,2]
[331962682,1720902638638,-500.0,0.00024657,2]
[331962683,1720902638647,-500.0,0.00024657,2]
[331962684,1720902638656,-500.0,0.00024657,2]
[331962685,1720902638666,-595.39,0.00024657,2]
[331962686,1720902638676,-500.0,0.00024657,2]
[331962687,1720902638685,-500.0,0.00024657,2]
[331962688,1720902638694,-500.0,0.00024657,2]
[331962689,1720902638703,-500.0,0.00024657,2]
[331962690,1720902638713,-381.1800309,0.00024657,2]
[331962691,1720902638722,-500.0,0.00024657,2]
[331962692,1720902638731,-500.0,0.00024657,2]
[331962693,1720902638741,-500.0,0.00024657,2]
[331962694,1720902638750,-500.0,0.00024657,2]
[331962695,1720902638760,-601.2692364,0.00024657,2]
[331962696,1720902638769,-500.0,0.00024657,2]
[331962697,1720902638780,-500.0,0.00024657,2]
[331962698,1720902638789,-500.0,0.00024657,2]
[331962699,1720902638798,-500.0,0.00024657,2]
[331962700,1720902638808,-500.0,0.00024657,2]
[331962701,1720902638817,-500.0,0.00024657,2]
[331962702,1720902638826,-500.0,0.00024657,2]
[331962703,1720902638836,-500.0,0.00024657,2]
[331962704,1720902638845,-500.0,0.00024657,2]
[331962705,1720902638855,-282.10763108,0.00024657,2]
[331962706,1720902638864,-510.31467365,0.00024657,2]
[331962707,1720902638873,-500.0,0.00024657,2]
[331962708,1720902638882,-500.0,0.00024657,2]
[331962709,1720902638892,-500.0,0.00024657,2]
[331962710,1720902638901,-500.0,0.00024657,2]
[331962711,1720902638910,-769.48,0.00024657,2]
[331962712,1720902638920,-500.0,0.00024657,2]
[331962713,1720902638929,-500.0,0.00024657,2]
[331962714,1720902638939,-500.0,0.00024657,2]
[331962715,1720902638949,-500.0,0.00024657,2]
[331962716,1720902638958,-500.0,0.00024657,2]
[331962717,1720902638967,-500.0,0.00024657,2]
[331962718,1720902638977,-500.0,0.00024657,2]
[331962719,1720902638986,-500.0,0.00024657,2]
[331962720,1720902638995,-500.0,0.00024657,2]
[331962721,1720902639006,-500.0,0.00024657,2]
[331962722,1720902639015,-500.0,0.00024657,2]
[331962723,1720902639024,-500.0,0.00024657,2]
[331962724,1720902639034,-500.0,0.00024657,2]
[331962725,1720902639043,-500.0,0.00024657,2]
[331962726,1720902639052,-13615.39,0.00024657,2]
[331962727,1720902639062,-500.0,0.00024657,2]
[331962728,1720902639071,-500.0,0.00024657,2]
[331962729,1720902639081,-500.0,0.00024657,2]
[331962730,1720902639090,-500.0,0.00024657,2]
[331962731,1720902639100,-500.0,0.00024657,2]
[331962732,1720902639110,-500.0,0.00024657,2]
[331962733,1720902639119,-500.0,0.00024657,2]
[331962734,1720902639129,-500.0,0.00024657,2]
[331962735,1720902639140,-500.0,0.00024657,2]
[331962736,1720902639151,-500.0,0.00024657,2]
[331962737,1720902639162,-500.0,0.00024657,2]
[331962738,1720902639171,-500.0,0.00024657,2]
[331962739,1720902639181,-500.0,0.00024657,2]
[331962740,1720902639191,-500.0,0.00024657,2]
[331962741,1720902639202,-500.0,0.00024657,2]
[331962742,1720902639211,-500.0,0.00024657,2]
[331962743,1720902639223,-500.0,0.00024657,2]
[331962744,1720902639233,-2279.02,0.00024657,2]
[331962745,1720902639244,-831.62,0.00024657,2]
[331962746,1720902639255,-500.0,0.00024657,2]
[331962747,1720902639264,-506.2134527,0.00024657,2]
[331962748,1720902639274,-500.0,0.00024657,2]
[331962749,1720902639283,-500.0,0.00024657,2]
[331962750,1720902639293,-500.0,0.00024657,2]
[331962751,1720902639303,-500.0,0.00024657,2]
[331962752,1720902639313,-209.78652868,0.00024657,2]
[331962753,1720902639323,-500.0,0.00024657,2]
[331962754,1720902639333,-500.0,0.00024657,2]
[331962755,1720902639342,-500.0,0.00024657,2]
[331962756,1720902639352,-500.0,0.00024657,2]
[331962757,1720902639361,-500.0,0.00024657,2]
[331962758,1720902639370,-500.0,0.00024657,2]
[331962759,1720902639380,-500.0,0.00024657,2]
[331962760,1720902639389,-500.0,0.00024657,2]
[331962761,1720902639398,-500.0,0.00024657,2]
[331962762,1720902639408,-778.88,0.00024657,2]
[331962763,1720902639417,-500.0,0.00024657,2]
[331962765,1720902639426,-500.0,0.00024657,2]
[331962767,1720902639436,-500.0,0.00024657,2]
[331962769,1720902639446,-500.0,0.00024657,2]
[331962771,1720902639455,-500.0,0.00024657,2]
[331962773,1720902639465,-500.0,0.00024657,2]
[331962774,1720902639474,-500.0,0.00024657,2]
[331962775,1720902639484,-500.0,0.00024657,2]
[331962777,1720902639493,-500.0,0.00024657,2]
[331962778,1720902639505,-500.0,0.00024657,2]
[331962779,1720902639514,-500.0,0.00024657,2]
[331962780,1720902639525,-187.00366007,0.00024657,2]
[331962781,1720902639537,-554.98157626,0.00024657,2]
[331962782,1720902639549,-500.0,0.00024657,2]
[331962783,1720902639558,-500.0,0.00024657,2]
[331962784,1720902639568,-500.0,0.00024657,2]
[331962785,1720902639577,-500.0,0.00024657,2]
[331962786,1720902639587,-500.0,0.00024657,2]
[331962787,1720902639596,-500.0,0.00024657,2]
[331962788,1720902639605,-321.19763501,0.00024657,2]
[331962789,1720902639616,-243.03959655,0.00024657,2]
[331962790,1720902639628,-576.30719606,0.00024657,2]
[331962791,1720902639637,-500.0,0.00024657,2]
[331962792,1720902639647,-504.36589478,0.00024657,2]
[331962793,1720902639657,-499.14017177,0.00024657,2]
[331962794,1720902639667,-500.0,0.00024657,2]
[331962795,1720902639676,-500.0,0.00024657,2]
[331962796,1720902639686,-500.0,0.00024657,2]
[331962798,1720902639696,-302.09237634,0.00024657,2]
[331962800,1720902639705,-380.0,0.00024658,2]
[331962802,1720902639715,-200.0,0.00024658,2]
[331962804,1720902639727,-500.0,0.00024658,2]
[331962805,1720902639738,-500.0,0.00024658,2]
[331962807,1720902639748,-500.0,0.00024658,2]
[331962809,1720902639758,-500.0,0.00024658,2]
[331962811,1720902639767,-500.0,0.00024658,2]
[331962813,1720902639776,-500.0,0.00024658,2]
[331962815,1720902639786,-397.02987974,0.00024658,2]
[331962817,1720902639795,-500.0,0.00024658,2]
[331962819,1720902639804,-500.0,0.00024658,2]
[331962821,1720902639813,-500.0,0.00024658,2]
[331962823,1720902639822,-500.0,0.00024658,2]
[331962829,1720902639911,-500.0,0.00024658,2]
[331962830,1720902639921,-500.0,0.00024658,2]
[331962831,1720902639931,-500.0,0.00024658,2]
[331962832,1720902639940,-500.0,0.00024658,2]
[331962833,1720902639949,-356.95152025,0.0002467,2]
[331962834,1720902639959,-5137.3774296,0.00024763,2]
[331962835,1720902639969,-500.0,0.00024799,2]
[331962836,1720902639978,-577.72647327,0.00024799,2]
[331962837,1720902639987,-178.85221454,0.00024799,2]
[331962838,1720902639996,-582.4668992,0.00024799,2]
[331962839,1720902640006,-581.99667983,0.00024799,2]
[331962840,1720902640017,-27075.20266405,0.000248,2]
[331962841,1720902640027,-2000.0,0.00024819,2]
[331962842,1720902640037,-302.27461649,0.000249,2]
[331962843,1720902640047,-25410.0297685,0.00024919,3]
[331962844,1720902640058,-12705.0148843,0.00024921,3]
[331962845,1720902640067,-500.76005384,0.00024929,2]
[331962846,1720902640077,-500.0,0.00024929,2]
[331962847,1720902640087,-500.0,0.00024929,2]
[331962848,1720902640097,-500.0,0.00024929,2]
[331962849,1720902640106,-500.0,0.00024929,2]
[331962850,1720902640117,-500.0,0.00024929,2]
[331962851,1720902640128,-500.0,0.00024929,2]
[331962852,1720902640138,-501.11844022,0.00024929,2]
[331962853,1720902640148,-500.0,0.00024929,2]
[331962854,1720902640158,-500.0,0.00024929,2]
[331962855,1720902640167,-518.23035711,0.00024929,2]
[331962856,1720902640177,-500.0,0.00024929,2]
[331962857,1720902640186,-500.0,0.00024929,2]
[331962858,1720902640195,-500.0,0.00024929,2]
[331962859,1720902640205,-500.0,0.00024929,2]
[331962860,1720902640214,-199.52435898,0.00024929,2]
[331962861,1720902640223,-500.0,0.00024929,2]
[331962862,1720902640234,-589.53099683,0.00024929,2]
[331962863,1720902640244,-500.0,0.00024929,2]
[331962864,1720902640254,-500.0,0.00024929,2]
[331962865,1720902640263,-500.0,0.00024929,2]
[331962866,1720902640272,-500.0,0.00024929,2]
[331962867,1720902640283,-504.68680287,0.00024929,2]
[331962868,1720902640292,-500.0,0.00024929,2]
[331962869,1720902640302,-500.0,0.00024929,2]
[331962870,1720902640311,-500.0,0.00024929,2]
[331962871,1720902640321,-186.46481003,0.00024929,2]
[331962872,1720902640330,-500.0,0.00024929,2]
[331962873,1720902640339,-500.0,0.00024929,2]
[331962874,1720902640350,-500.0,0.00024929,2]
[331962875,1720902640361,-500.0,0.00024929,2]
[331962876,1720902640371,-500.0,0.00024929,2]
[331962877,1720902640381,-500.0,0.00024929,2]
[331962878,1720902640390,-501.13533094,0.00024929,2]
[331962879,1720902640400,-365.49568131,0.00024929,2]
[331962893,1720902641255,-500.0,0.00024657,2]
[331962894,1720902641265,-14213.05,0.00024919,3]
[331962895,1720902641274,-134.50431869,0.00024929,2]
[331962896,1720902641284,-500.0,0.00024929,2]
[331962897,1720902641294,-503.60908765,0.00024929,2]
[331962898,1720902641303,-522.88917928,0.00024929,2]
[331962899,1720902641313,-500.0,0.00024929,2]
[331962900,1720902641321,-501.4063897,0.00024929,2]
[331962901,1720902641331,-500.0,0.00024929,2]
[331962902,1720902641341,-500.0,0.00024929,2]
[331962903,1720902641350,-500.0,0.00024929,2]
[331962904,1720902641359,-281.36419801,0.00024929,2]
[331962905,1720902641368,-502.38974762,0.00024929,2]
[331962906,1720902641377,-500.0,0.00024929,2]
[331962907,1720902641387,-500.0,0.00024929,2]
[331962908,1720902641396,-500.0,0.00024929,2]
[331962909,1720902641406,-500.0,0.00024929,2]
[331962910,1720902641415,-500.0,0.00024929,2]
[331962911,1720902641424,-500.0,0.00024929,2]
[331962912,1720902641434,-500.0,0.00024929,2]
[331962913,1720902641443,-500.0,0.00024929,2]
[331962914,1720902641452,-500.0,0.00024929,2]
[331962915,1720902641461,-500.0,0.00024929,2]
[331962916,1720902641470,-623.97149866,0.00024929,2]
[331962917,1720902641480,-500.0,0.00024929,2]
[331962918,1720902641491,-500.0,0.00024929,2]
[331962919,1720902641501,-500.0,0.00024929,2]
[331962920,1720902641511,-500.0,0.00024929,2]
[331962921,1720902641522,-394.59678082,0.00024929,2]
[331962922,1720902641533,-500.0,0.00024929,2]
[331962923,1720902641544,-500.0,0.00024929,2]
[331962924,1720902641557,-540.61134251,0.00024929,2]
[331962925,1720902641568,-500.0,0.00024929,2]
[331962926,1720902641577,-500.0,0.00024929,2]
[331962927,1720902641588,-500.0,0.00024929,2]
[331962928,1720902641600,-500.0,0.00024929,2]
[331962929,1720902641610,-500.0,0.00024929,2]
[331962930,1720902641621,-500.0,0.00024929,2]
[331962931,1720902641631,-500.0,0.00024929,2]
[331962932,1720902641641,-500.0,0.00024929,2]
[331962933,1720902641651,-500.0,0.00024929,2]
[331962934,1720902641662,-500.0,0.00024929,2]
[331962935,1720902641672,-500.0,0.00024929,2]
[331962936,1720902641681,-500.0,0.00024929,2]
[331962937,1720902641691,-500.0,0.00024929,2]
[331962938,1720902641700,-500.0,0.00024929,2]
[331962939,1720902641710,-500.0,0.00024929,2]
[331962940,1720902641720,-500.0,0.00024929,2]
[331962941,1720902641730,-500.0,0.00024929,2]
[331962942,1720902641740,-500.0,0.00024929,2]
[331962943,1720902641749,-500.0,0.00024929,2]
[331962944,1720902641758,-500.0,0.00024929,2]
[331962945,1720902641768,-500.0,0.00024929,2]
[331962946,1720902641777,-500.0,0.00024929,2]
[331962947,1720902641787,-500.0,0.00024929,2]
[331962948,1720902641797,-500.0,0.00024929,2]
[331962949,1720902641806,-500.0,0.00024929,2]
[331962950,1720902641815,-500.0,0.00024929,2]
[331962951,1720902641825,-500.0,0.00024929,2]
[331962952,1720902641834,-500.0,0.00024929,2]
[331962953,1720902641844,-500.0,0.00024929,2]
[331962954,1720902641853,-500.0,0.00024929,2]
[331962955,1720902641862,-515.71482597,0.00024929,2]
[331962956,1720902641872,-500.0,0.00024929,2]
[331962957,1720902641882,-500.0,0.00024929,2]
[331962958,1720902641891,-500.0,0.00024929,2]
[331962959,1720902641900,-464.40924793,0.00024929,2]
[331962960,1720902641910,-500.0,0.00024929,2]
[331962961,1720902641920,-500.0,0.00024929,2]
[331962962,1720902641930,-500.0,0.00024929,2]
[331962963,1720902641939,-554.72,0.00024929,2]
[331962964,1720902641949,-500.0,0.00024929,2]
[331962965,1720902641959,-500.0,0.00024929,2]
[331962966,1720902641970,-500.0,0.00024929,2]
[331962967,1720902641979,-540.2,0.00024929,2]
[331962968,1720902641988,-500.0,0.00024929,2]
[331962969,1720902641998,-500.0,0.00024929,2]
[331962970,1720902642008,-500.0,0.00024929,2]
[331962971,1720902642017,-500.0,0.00024929,2]
[331962972,1720902642026,-500.0,0.00024929,2]
[331962973,1720902642036,-500.0,0.00024929,2]
[331962974,1720902642046,-500.0,0.00024929,2]
[331962975,1720902642056,-500.0,0.00024929,2]
[331962976,1720902642065,-500.0,0.00024929,2]
[331962977,1720902642075,-500.0,0.00024929,2]
[331962978,1720902642085,-500.0,0.00024929,2]
[331962979,1720902642094,-500.0,0.00024929,2]
[331962980,1720902642104,-500.0,0.00024929,2]
[331962981,1720902642114,-261.34069362,0.00024929,2]
[331962982,1720902642123,-500.0,0.00024929,2]
[331962983,1720902642132,-503.00085207,0.00024929,2]
[331962984,1720902642142,-500.0,0.00024929,2]
[331962985,1720902642151,-506.83848495,0.00024929,2]
[331962986,1720902642160,-500.0,0.00024929,2]
[331962987,1720902642170,-500.0,0.00024929,2]
[331962988,1720902642180,-500.0,0.00024929,2]
[331962989,1720902642190,-500.0,0.00024929,2]
[331962990,1720902642200,-500.0,0.00024929,2]
[331962991,1720902642210,-500.0,0.00024929,2]
[331962992,1720902642220,-500.0,0.00024929,2]
[331962993,1720902642229,-500.0,0.00024929,2]
[331962994,1720902642239,-500.0,0.00024929,2]
[331962995,1720902642249,-500.0,0.00024929,2]
[331962996,1720902642258,-500.0,0.00024929,2]
[331962997,1720902642268,-599.143082,0.00024929,2]
[331962998,1720902642278,-500.0,0.00024929,2]
[331962999,1720902642288,-500.0,0.00024929,2]
[331963000,1720902642298,-496.15694575,0.00024929,2]
[331963001,1720902642307,-500.0,0.00024929,2]
[331963002,1720902642316,-500.0,0.00024929,2]
[331963003,1720902642326,-500.0,0.00024929,2]
[331963004,1720902642336,-500.0,0.00024929,2]
[331963005,1720902642346,-1500.0,0.00024929,2]
[331963006,1720902642355,-500.0,0.00024929,2]
[331963007,1720902642364,-504.64272653,0.0002493,2]
[331963008,1720902642374,-1975.66,0.00024931,2]
[331963009,1720902642383,-500.0,0.00024931,2]
[331963010,1720902642393,-500.0,0.00024931,2]
[331963012,1720902642402,-500.0,0.00024931,2]